Workbook

Sheet chisq grapher
A1: Chi-squared grapher. | I1: PDF | V1: 0
A2: Play with the green cells! | V2: divide the scrollbar value above by max possible:
B3: degrees of freedom: | V3: =V1/32767 -> 0
B4: =V5 -> 1 | V4: multiply by max desired DOF, and add 1.
B5: maximum x value to go to: 1% significance | V5: =1+V3*60 -> 1
B6: =CHIINV(0.01,dof) -> 6.634896712
B7: # steps to take | F7: significance level (alpha)
B8: 120 | F8: 0.05
B9: dx per step | F9: =CHIINV(F8,dof) -> 3.841459149
B10: =B6/B8 -> 0.05529080593
B12: auto-zooming graph: | E12: fixed-zoom graph:
B13: x | C13: PDF | D13: CDF | E13: x | F13: PDF | G13: CDF | I13: x | J13: y
A14: 1 | B14: 0 | C14: =B14^(dof/2-1)*EXP(-B14/2)/(2^(dof/2) * EXP(GAMMALN(dof/2))) ->  | D14: =1-CHIDIST(B14,dof) -> 0 | E14: 0 | F14: =E14^(dof/2-1)*EXP(-E14/2)/(2^(dof/2) * EXP(GAMMALN(dof/2))) ->  | G14: =1-CHIDIST(E14,dof) -> 0 | I14: =F9 -> 3.841459149 | J14: 0
A15: 2 | B15: =B14+$B$10 -> 0.05529080593 | C15: 1.650354948 | D15: 0.185899904 | E15: 0.2 | F15: 0.8071711293 | G15: =1-CHIDIST(E15,dof) -> 0.3452791538 | I15: =I14 -> 3.841459149 | J15: 1
A16: 3 | B16: =B15+$B$10 -> 0.1105816119 | C16: 1.135157482 | D16: 0.2605170514 | E16: 0.4 | F16: 0.5164415474 | G16: 0.4729107428
A17: 4 | B17: 0.1658724178 | C17: 0.9015799404 | D17: 0.3161935199 | E17: 0.6 | F17: 0.3815452894 | G17: 0.5614219673
A18: 5 | B18: 0.2211632237 | C18: 0.7595014829 | D18: 0.3618449736 | E18: 0.8 | F18: 0.2989835399 | G18: 0.628906628 | I18: title
A19: 6 | B19: 0.2764540297 | C19: 0.6607959517 | D19: 0.4009651522 | E19: 1 | F19: 0.2419707245 | G19: 0.6826891869 | I19: ="Chi-squared, dof="&dof -> Chi-squared, dof=1
A20: 7 | B20: 0.3317448356 | C20: 0.5867735172 | D20: 0.4353665324 | E20: 1.2 | F20: 0.1998677639 | G20: 0.7266781055
A21: 8 | B21: 0.3870356415 | C21: 0.5284341352 | D21: 0.4661382751 | E21: 1.4 | F21: 0.1674325573 | G21: 0.7632762676
A22: 9 | B22: 0.4423264475 | C22: 0.4808267761 | D22: 0.4939982889 | E22: 1.6 | F22: 0.1417145653 | G22: 0.7940966788
A23: 10 | B23: 0.4976172534 | C23: 0.440967048 | D23: 0.5194510428 | E23: 1.8 | F23: 0.1208951225 | G23: 0.8202874133
A24: 11 | B24: 0.5529080593 | C24: 0.406931347 | D24: 0.5428681051 | E24: 2 | F24: 0.1037768743 | G24: 0.8427007352
A25: 12 | B25: 0.6081988652 | C25: 0.3774144792 | D25: 0.5645332235 | E25: 2.2 | F25: 0.08953128037 | G25: 0.8619892222
A26: 13 | B26: 0.6634896712 | C26: 0.3514940931 | D26: 0.5846693447 | E26: 2.4 | F26: 0.07756236924 | G26: 0.8786647188
A27: 14 | B27: 0.7187804771 | C27: 0.3284964889 | D27: 0.6034557726 | E27: 2.6 | F27: 0.06742804459 | G27: 0.8931362591
A28: 15 | B28: 0.774071283 | C28: 0.3079159206 | D28: 0.6210394904 | E28: 2.8 | F28: 0.05879207325 | G28: 0.9057356694
A29: 16 | B29: 0.829362089 | C29: 0.2893638584 | D29: 0.6375429442 | E29: 3 | F29: 0.05139344326 | G29: 0.9167354596
A30: 17 | B30: 0.8846528949 | C30: 0.2725358754 | D30: 0.6530695464 | E30: 3.2 | F30: 0.04502605584 | G30: 0.9263617169
A31: 18 | B31: 0.9399437008 | C31: 0.2571893398 | D31: 0.6677076702 | E31: 3.4 | F31: 0.03952482794 | G31: 0.9348035662
A32: 19 | B32: 0.9952345068 | C32: 0.243127971 | D32: 0.6815336274 | E32: 3.6 | F32: 0.03475591672 | G32: 0.9422204204
A33: 20 | B33: 1.050525313 | C33: 0.2301908899 | D33: 0.694613598 | E33: 3.8 | F33: 0.03060967735 | G33: 0.9487474063
A34: 21 | B34: 1.105816119 | C34: 0.2182446914 | D34: 0.7070065229 | E34: 4 | F34: 0.02699548325 | G34: 0.9544997295
A35: 22 | B35: 1.161106925 | C35: 0.2071775978 | D35: 0.7187636978 | E35: 4.2 | F35: 0.02383784594 | G35: 0.9595760166
A36: 23 | B36: 1.21639773 | C36: 0.1968950755 | D36: 0.7299310472 | E36: 4.4 | F36: 0.02107346098 | G36: 0.9640610634
A37: 24 | B37: 1.271688536 | C37: 0.1873164983 | D37: 0.7405496657 | E37: 4.6 | F37: 0.01864892668 | G37: 0.96802804
A38: 25 | B38: 1.326979342 | C38: 0.178372575 | D38: 0.7506565132 | E38: 4.8 | F38: 0.01651895958 | G38: 0.9715402606
A39: 26 | B39: 1.382270148 | C39: 0.1700033394 | D39: 0.7602850351 | E39: 5 | F39: 0.01464498256 | G39: 0.9746526797
A40: 27 | B40: 1.437560954 | C40: 0.1621565653 | D40: 0.7694654307 | E40: 5.2 | F40: 0.01299399637 | G40: 0.977413109
A41: 28 | B41: 1.49285176 | C41: 0.1547865009 | D41: 0.7782253445 | E41: 5.4 | F41: 0.01153766925 | G41: 0.9798632465
A42: 29 | B42: 1.548142566 | C42: 0.1478528509 | D42: 0.7865900419 | E42: 5.6 | F42: 0.01025159647 | G42: 0.9820395212
A43: 30 | B43: 1.603433372 | C43: 0.1413199496 | D43: 0.7945825617 | E43: 5.8 | F43: 0.009114693548 | G43: 0.9839738246
A44: 31 | B44: 1.658724178 | C44: 0.1351560838 | D44: 0.8022242477 | E44: 6 | F44: 0.008108695554 | G44: 0.9856941197
A45: 32 | B45: 1.714014984 | C45: 0.1293329352 | D45: 0.8095346338 | E45: 6.2 | F45: 0.007217741553 | G45: 0.9872249674
A46: 33 | B46: 1.76930579 | C46: =B46^(dof/2-1)*EXP(-B46/2)/(2^(dof/2) * EXP(GAMMALN(dof/2))) -> 0.1238251167 | D46: =1-CHIDIST(B46,dof) -> 0.8165319137 | E46: 6.4 | F46: 0.006428027658 | G46: 0.9885879627
A47: 34 | B47: 1.824596596 | C47: 0.1186097851 | D47: 0.823232814 | E47: 6.6 | F47: 0.005727515956 | G47: 0.9898021226
A48: 35 | B48: 1.879887402 | C48: 0.113666316 | D48: 0.8296529909 | E48: 6.8 | F48: 0.00510568916 | G48: 0.9908842123
A49: 36 | B49: 1.935178208 | C49: 0.1089760281 | D49: 0.8358068886 | E49: 7 | F49: 0.004553342921 | G49: 0.9918490281
A50: 37 | B50: 1.990469014 | C50: 0.1045219493 | D50: 0.8417080913 | E50: 7.2 | F50: 0.004062409347 | G50: 0.9927096417
A51: 38 | B51: 2.045759819 | C51: 0.1002886172 | D51: 0.8473691913 | E51: 7.4 | F51: 0.003625806497 | G51: 0.9934776121
A52: 39 | B52: 2.101050625 | C52: 0.09626190697 | D52: 0.8528019755 | E52: 7.6 | F52: 0.003237309625 | G52: 0.9941631694
A53: 40 | B53: 2.156341431 | C53: 0.09242888409 | D53: 0.8580175565 | E53: 7.8 | F53: 0.002891440668 | G53: 0.9947753762
A54: 41 | B54: 2.211632237 | C54: 0.08877767593 | D54: 0.8630262827 | E54: 8 | F54: 0.002583373169 | G54: 0.9953222648
A55: 42 | B55: 2.266923043 | C55: 0.08529736064 | D55: 0.8678378808 | E55: 8.2 | F55: 0.002308850239 | G55: 0.9958109608
A56: 43 | B56: 2.322213849 | C56: 0.08197787003 | D56: 0.8724615629 | E56: 8.4 | F56: 0.002064113616 | G56: 0.9962477898
A57: 44 | B57: 2.377504655 | C57: 0.07880990457 | D57: 0.8769059358 | E57: 8.6 | F57: 0.001845842189 | G57: 0.9966383699
A58: 45 | B58: 2.432795461 | C58: 0.0757848587 | D58: 0.8811791172 | E58: 8.8 | F58: 0.001651098601 | G58: 0.9969876945
A59: 46 | B59: 2.488086267 | C59: 0.072894755 | D59: 0.8852888293 | E59: 9 | F59: 0.001477282804 | G59: 0.9973002039
A60: 47 | B60: 2.543377073 | C60: 0.07013218596 | D60: 0.8892423023 | E60: 9.2 | F60: 0.001322091568 | G60: 0.9975798487
A61: 48 | B61: 2.598667879 | C61: 0.06749026239 | D61: 0.8930463952 | E61: 9.4 | F61: 0.001183483137 | G61: 0.9978301455
A62: 49 | B62: 2.653958685 | C62: 0.06496256748 | D62: 0.8967075995 | E62: 9.6 | F62: 0.001059646325 | G62: 0.9980542263
A63: 50 | B63: 2.709249491 | C63: 0.06254311585 | D63: 0.9002320493 | E63: 9.8 | F63: 0.0009489734599 | G63: 0.9982548812
A64: 51 | B64: 2.764540297 | C64: 0.06022631698 | D64: 0.9036256045 | E64: 10 | F64: 0.0008500366602 | G64: 0.9984345977
A65: 52 | B65: 2.819831103 | C65: 0.05800694236 | D65: 0.9068937777 | E65: 10.2 | F65: 0.000761567009 | G65: 0.9985955934
A66: 53 | B66: 2.875121908 | C66: 0.05588009606 | D66: 0.9100418189 | E66: 10.4 | F66: 0.0006824362538 | G66: 0.9987398468
A67: 54 | B67: 2.930412714 | C67: 0.05384118813 | D67: 0.9130747161 | E67: 10.6 | F67: 0.0006116407034 | G67: 0.9988691234
A68: 55 | B68: 2.98570352 | C68: 0.05188591071 | D68: 0.9159971992 | E68: 10.8 | F68: 0.0005482870467 | G68: 0.998984999
A69: 56 | B69: 3.040994326 | C69: 0.05001021633 | D69: 0.9188138049 | E69: 11 | F69: 0.00049157985 | G69: 0.9990888811
A70: 57 | B70: 3.096285132 | C70: 0.04821029828 | D70: 0.9215288131 | E70: 11.2 | F70: 0.0004408105254 | G70: 0.9991820267
A71: 58 | B71: 3.151575938 | C71: 0.0464825728 | D71: 0.9241463137 | E71: 11.4 | F71: 0.0003953475878 | G71: 0.9992655589
A72: 59 | B72: 3.206866744 | C72: 0.04482366289 | D72: 0.9266702041 | E72: 11.6 | F72: 0.0003546280436 | G72: 0.9993404818
A73: 60 | B73: 3.26215755 | C73: 0.04323038351 | D73: 0.9291042003 | E73: 11.8 | F73: 0.0003181497739 | G73: 0.9994076928
A74: 61 | B74: 3.317448356 | C74: 0.04169972808 | D74: 0.9314518378 | E74: 12 | F74: 0.0002854647917 | G74: 0.9994679945
A75: 62 | B75: 3.372739162 | C75: 0.04022885619 | D75: 0.9337165201 | E75: 13 | F75: 0.0001663505562 | G75: 0.999688509
A76: 63 | B76: 3.428029968 | C76: 0.03881508231 | D76: 0.9359014668 | E76: 14 | F76: 9.722650504e-05 | G76: 0.9998171894
A77: 64 | B77: 3.483320774 | C77: 0.03745586539 | D77: 0.9380097641 | E77: 15 | F77: 5.697125966e-05 | G77: 0.9998924888
A78: 65 | B78: 3.53861158 | C78: =B78^(dof/2-1)*EXP(-B78/2)/(2^(dof/2) * EXP(GAMMALN(dof/2))) -> 0.03614879936 | D78: =1-CHIDIST(B78,dof) -> 0.9400443614 | E78: 16 | F78: =E78^(dof/2-1)*EXP(-E78/2)/(2^(dof/2) * EXP(GAMMALN(dof/2))) -> 3.345755644e-05 | G78: 0.9999366575
A79: 66 | B79: 3.593902386 | C79: 0.03489160442 | D79: 0.9420080787 | E79: 17 | F79: 1.968713453e-05 | G79: =1-CHIDIST(E79,dof) -> 0.9999626202
A80: 67 | B80: =B79+$B$10 -> 3.649193191 | C80: 0.0336821189 | D80: 0.9439036131 | E80: 18 | F80: 1.160442099e-05 | G80: 0.9999779095
A81: 68 | B81: 3.704483997 | C81: 0.03251829189 | D81: 0.9457335453 | E81: 19 | F81: 6.850711634e-06 | G81: 0.9999869282
A82: 69 | B82: 3.759774803 | C82: 0.03139817633 | D82: 0.9475003391 | E82: 20 | F82: 4.049955478e-06 | G82: 0.9999922558
A83: 70 | B83: 3.815065609 | C83: 0.03031992266 | D83: 0.9492063737 | E83: 21 | F83: 2.397222573e-06 | G83: 0.9999954072
A84: 71 | B84: 3.870356415 | C84: 0.02928177293 | D84: 0.9508539071 | E84: 22 | F84: 1.420559486e-06 | G84: 0.9999972735
A85: 72 | B85: 3.925647221 | C85: 0.02828205537 | D85: 0.9524451101 | E85: 24 | F85: 5.003462649e-07 | G85: 0.9999990366
A86: 73 | B86: 3.980938027 | C86: 0.0273191793 | D86: 0.9539820635 | E86: 26 | F86: 1.768459535e-07 | G86: 0.9999996586
A87: 74 | B87: 4.036228833 | C87: 0.02639163041 | D87: 0.955466762 | E87: 28 | F87: 6.269144836e-08 | G87: 0.9999998787
A88: 75 | B88: 4.091519639 | C88: 0.02549796642 | D88: 0.9569011186 | E88: 30 | F88: 2.228087334e-08 | G88: 0.9999999568
A89: 76 | B89: 4.146810445 | C89: 0.024636813 | D89: 0.9582869688 | E89: 32 | F89: 7.936396669e-09 | G89: 0.9999999846
A90: 77 | B90: 4.202101251 | C90: 0.02380685993 | D90: 0.9596260734 | E90: 34 | F90: 2.832464105e-09 | G90: 0.9999999945
A91: 78 | B91: 4.257392057 | C91: 0.02300685759 | D91: 0.9609201228 | E91: 36 | F91: 1.012647142e-09 | G91: 0.999999998
A92: 79 | B92: 4.312682863 | C92: 0.02223561366 | D92: 0.9621707354 | E92: 38 | F92: 3.625960856e-10 | G92: 0.9999999993
A93: 80 | B93: 4.367973669 | C93: 0.02149198997 | D93: 0.9633794788 | E93: 40 | F93: 1.300140934e-10 | G93: 0.9999999997
A94: 81 | B94: 4.423264475 | C94: 0.02077489969 | D94: 0.9645478449 | E94: 42 | F94: 4.667682429e-11 | G94: 0.9999999999
A95: 82 | B95: 4.47855528 | C95: 0.02008330453 | D95: 0.965677272 | E95: 44 | F95: 1.677664542e-11 | G95: 1
A96: 83 | B96: 4.533846086 | C96: 0.01941621225 | D96: 0.966769142 | E96: 46 | F96: 6.036122795e-12 | G96: 1
A97: 84 | B97: 4.589136892 | C97: 0.01877267428 | D97: 0.9678247832 | E97: 48 | F97: 2.173811497e-12 | G97: 1
A98: 85 | B98: 4.644427698 | C98: 0.01815178346 | D98: 0.9688454729 | E98: 50 | F98: 7.835433265e-13 | G98: 1
A99: 86 | B99: 4.699718504 | C99: 0.01755267196 | D99: 0.9698324389 | E99: 52 | F99: 2.826518709e-13 | G99: 1
A100: 87 | B100: 4.75500931 | C100: 0.01697450926 | D100: 0.9707868625 | E100: 54 | F100: 1.020380557e-13 | G100: 1
A101: 88 | B101: 4.810300116 | C101: 0.01641650038 | D101: 0.9717098796 | E101: 56 | F101: 3.686129248e-14 | G101: 1
A102: 89 | B102: 4.865590922 | C102: 0.01587788402 | D102: 0.9726025835 | E102: 58 | F102: 1.33246587e-14 | G102: 1
A103: 90 | B103: 4.920881728 | C103: 0.015357931 | D103: 0.9734660261 | E103: 60 | F103: 4.819477793e-15 | G103: 1
A104: 91 | B104: 4.976172534 | C104: 0.01485594267 | D104: 0.9743012198 | E104: 62 | F104: 1.744155822e-15 | G104: 1
A105: 92 | B105: 5.03146334 | C105: 0.01437124943 | D105: 0.9751091368 | E105: 64 | F105: 6.315338854e-16 | G105: 1
A106: 93 | B106: 5.086754146 | C106: 0.0139032094 | D106: 0.9758907207 | E106: 66 | F106: 2.287811271e-16 | G106: 1
A107: 94 | B107: 5.142044952 | C107: 0.01345120704 | D107: 0.9766468725 | E107: 68 | F107: 8.291693206e-17 | G107: 1
A108: 95 | B108: 5.197335758 | C108: 0.01301465196 | D108: 0.9773784623 | E108: 70 | F108: 3.006451341e-17 | G108: 1
A109: 96 | B109: 5.252626563 | C109: 0.01259297778 | D109: 0.9780863285 | E109: 72 | F109: 1.090542183e-17 | G109: 1
A110: 97 | B110: 5.307917369 | C110: =B110^(dof/2-1)*EXP(-B110/2)/(2^(dof/2) * EXP(GAMMALN(dof/2))) -> 0.01218564094 | D110: =1-CHIDIST(B110,dof) -> 0.9787712789 | E110: 74 | F110: 3.957294537e-18 | G110: 1
A111: 98 | B111: 5.363208175 | C111: 0.01179211974 | D111: 0.9794340915 | E111: 76 | F111: 1.436524235e-18 | G111: 1
A112: 99 | B112: 5.418498981 | C112: 0.01141191331 | D112: 0.9800755163 | E112: 78 | F112: 5.216485088e-19 | G112: 1
A113: 100 | B113: 5.473789787 | C113: 0.01104454066 | D113: 0.9806962762 | E113: 80 | F113: 1.89489782e-19 | G113: 1
A114: 101 | B114: 5.529080593 | C114: 0.01068953983 | D114: 0.9812970678 | E114: 82 | F114: 6.885403272e-20 | G114: 1
A115: 102 | B115: 5.584371399 | C115: 0.010346467 | D115: 0.9818785629 | E115: 84 | F115: 2.502661904e-20 | G115: 1
A116: 103 | B116: 5.639662205 | C116: 0.01001489573 | D116: 0.982441409 | E116: 86 | F116: 9.099093303e-21 | G116: 1
A117: 104 | B117: 5.694953011 | C117: 0.009694416171 | D117: 0.9829862308 | E117: 88 | F117: 3.309112453e-21 | G117: 1
A118: 105 | B118: 5.750243817 | C118: 0.009384634356 | D118: 0.9835136306 | E118: 90 | F118: 1.203752288e-21 | G118: 1
A119: 106 | B119: 5.805534623 | C119: 0.009085171513 | D119: 0.9840241892 | E119: 92 | F119: 4.379958389e-22 | G119: 1
A120: 107 | B120: 5.860825429 | C120: 0.008795663408 | D120: 0.9845184671 | E120: 94 | F120: 1.59406303e-22 | G120: 1
A121: 108 | B121: 5.916116235 | C121: 0.008515759727 | D121: 0.984997005 | E121: 96 | F121: 5.802822922e-23 | G121: 1
A122: 109 | B122: 5.971407041 | C122: 0.008245123486 | D122: 0.9854603245 | E122: 98 | F122: 2.112843913e-23 | G122: 1
A123: 110 | B123: 6.026697847 | C123: 0.007983430469 | D123: 0.9859089278 | E123: 100 | F123: 7.694598626e-24 | G123: 1
A124: 111 | B124: 6.081988652 | C124: 0.007730368692 | D124: 0.9863433032 | E124: 102 | F124: 2.802795444e-24 | G124: 1
A125: 112 | B125: 6.137279458 | C125: 0.007485637892 | D125: 0.9867639183 | E125: 104 | F125: 1.021128358e-24 | G125: 1
A126: 113 | B126: 6.192570264 | C126: 0.007248949045 | D126: 0.9871712256 | E126: 106 | F126: 3.720913656e-25 | G126: 1
A127: 114 | B127: 6.24786107 | C127: 0.007020023898 | D127: 0.9875656621 | E127: 108 | F127: 1.356113893e-25 | G127: 1
A128: 115 | B128: 6.303151876 | C128: 0.006798594533 | D128: 0.9879476496 | E128: 110 | F128: 4.943302854e-26 | G128: 1
A129: 116 | B129: 6.358442682 | C129: 0.006584402942 | D129: 0.9883175953 | E129: 112 | F129: 1.802229391e-26 | G129: 1
A130: 117 | B130: 6.413733488 | C130: 0.006377200623 | D130: 0.9886758925 | E130: 114 | F130: 6.571615899e-27 | G130: 1
A131: 118 | B131: 6.469024294 | C131: 0.006176748204 | D131: 0.9890229209 | E131: 116 | F131: 2.396630714e-27 | G131: 1
A132: 119 | B132: 6.5243151 | C132: 0.00598281507 | D132: 0.9893590475 | E132: 118 | F132: 8.741674471e-28 | G132: 1
A133: 120 | B133: 6.579605906 | C133: 0.005795179014 | D133: 0.9896846265 | E133: 120 | F133: 3.188970697e-28 | G133: 1
